lending/lending_fUSD_20251121
["ID","MTS","AMOUNT","RATE_DAILY","PERIOD"]
[394591339,1763745053044,-151.0,0.000229,2]
[394591340,1763745053054,-274.24725,0.000229,2]
[394591341,1763745053063,-151.0,0.000229,2]
[394591342,1763745053072,-261.185169,0.000229,2]
[394591343,1763745053082,-261.185169,0.000229,2]
[394591344,1763745053096,-261.185169,0.000229,2]
[394591345,1763745053106,-261.185169,0.000229,2]
[394591346,1763745053115,-150.0,0.00022928,2]
[394591347,1763745053125,-629.69125877,0.00023,7]
[394591348,1763745053135,-999.75921853,0.00023,2]
[394591349,1763745053145,-161.0,0.00023,5]
[394591350,1763745053155,-1000.0,0.00023,14]
[394591351,1763745053165,-30817.28,0.00023,7]
[394591352,1763745053175,-400.0,0.00023,2]
[394591353,1763745053185,-426.56612961,0.00023,7]
[394591354,1763745053195,-151.984953,0.00023,2]
[394591355,1763745053205,-446.0,0.00023,7]
[394591356,1763745053215,-170.0,0.00023,7]
[394591357,1763745053224,-1742.68655323,0.0002301,120]
[394591358,1763745053234,-171.0,0.00023033,120]
[394591359,1763745053244,-3000.0,0.00023096,2]
[394591360,1763745053254,-2565.46003643,0.000231,2]
[394591361,1763745053263,-161.290659,0.000231,2]
[394591362,1763745053273,-171.0,0.00023109,120]
[394591363,1763745053283,-417.25,0.00023207,2]
[394591364,1763745053293,-417.25,0.00023207,2]
[394591365,1763745053303,-337.69,0.00023207,2]
[394591366,1763745053313,-834.24,0.00023207,2]
[394591367,1763745053323,-169.64,0.00023207,2]
[394591368,1763745053333,-170.75,0.00023207,2]
[394591369,1763745053346,-169.64,0.00023207,2]
[394591370,1763745053356,-169.64,0.00023207,2]
[394591371,1763745053366,-169.64,0.00023207,2]
[394591372,1763745053376,-169.64,0.00023207,2]
[394591373,1763745053385,-169.64,0.00023207,2]
[394591374,1763745053395,-151.0,0.00023207,2]
[394591375,1763745053405,-152.437446,0.00023207,2]
[394591376,1763745053415,-151.0,0.00023207,2]
[394591377,1763745053425,-500.0,0.00023207,2]
[394591378,1763745053435,-500.0,0.00023207,2]
[394591379,1763745053444,-500.0,0.00023207,2]
[394591380,1763745053454,-500.0,0.00023207,2]
[394591381,1763745053463,-150.0,0.00023223,2]
[394591382,1763745053472,-256.0,0.00023238,120]
[394591383,1763745053482,-908.0,0.00023273,2]
[394591384,1763745053492,-1192.0,0.00023273,2]
[394591385,1763745053502,-2659.0,0.00023273,2]
[394591386,1763745053511,-561.0,0.00023273,2]
[394591387,1763745053521,-6496.0,0.00023273,2]
[394591388,1763745053530,-446.0,0.00023288,7]
[394591389,1763745053540,-152.0,0.00023312,6]
[394591390,1763745053550,-800.0,0.0002337,2]
[394591391,1763745053559,-150.0,0.00023498,2]
[394591392,1763745053569,-1319.0,0.00023498,2]
[394591393,1763745053579,-575.0,0.00023498,2]
[394591394,1763745053591,-609.0,0.00023498,2]
[394591395,1763745053601,-3435.0,0.00023498,2]
[394591396,1763745053626,-822.0,0.00023498,2]
[394591397,1763745053644,-1601.0,0.00023498,2]
[394591398,1763745053666,-659.0,0.00023498,2]
[394591399,1763745053687,-1256.0,0.00023498,2]
[394591400,1763745053705,-957.62,0.00023498,2]
[394591401,1763745053724,-200.0,0.000235,2]
[394591402,1763745053745,-302.0,0.00023503,120]
[394591403,1763745053765,-756.0,0.00023557,120]
[394591404,1763745053783,-1519.43940876,0.00023613,2]
[394591405,1763745053802,-161.0,0.00023618,120]
[394591406,1763745053821,-187.77,0.00023631,2]
[394591407,1763745053837,-3000.0,0.00023644,2]
[394591408,1763745053852,-163.00731316,0.00023662,2]
[394591409,1763745053871,-161.0,0.00023664,120]
[394591410,1763745053886,-1000.0,0.00023707,2]
[394591411,1763745053905,-150.65550955,0.00023744,2]
[394591412,1763745053920,-215.0,0.00023751,120]
[394591413,1763745053936,-181.0,0.00023913,120]
[394591414,1763745053953,-209.29484464,0.00023982,2]
[394591415,1763745053969,-1012.72387135,0.00024,2]
[394591416,1763745054001,-3600.0,0.00024,2]
[394591417,1763745054025,-16083.93052498,0.00024,2]
[394591418,1763745054046,-4000.0,0.00024,5]
[394591419,1763745054067,-30817.28,0.00024,7]
[394591420,1763745054084,-152.0,0.00024015,7]
[394591421,1763745054105,-300.0,0.00024105,2]
[394591422,1763745054123,-150.0,0.00024105,2]
[394591423,1763745054144,-150.0,0.00024105,2]
[394591424,1763745054168,-150.0,0.00024105,2]
[394591425,1763745054185,-446.0,0.00024164,7]
[394591426,1763745054202,-418.39031544,0.0002421,2]
[394591427,1763745054219,-3666.23569219,0.0002421,2]
[394591428,1763745054236,-1975.12,0.00024225,30]
[394591429,1763745054252,-1055.48207517,0.00024233,2]
[394591430,1763745054269,-1613.0,0.00024322,2]
[394591431,1763745054287,-1519.43940876,0.00024385,2]
[394591432,1763745054304,-167.18070033,0.000244,2]
[394591433,1763745054321,-2000.0,0.000244,2]
[394591434,1763745054341,-439.08,0.00024494,2]
[394591435,1763745054357,-2403.20937311,0.000246,120]
[394591436,1763745054373,-592.62833352,0.0002465,2]
[394591437,1763745054390,-166.13861082,0.0002465,2]
[394591438,1763745054406,-310.65032798,0.0002465,120]
[394591439,1763745054421,-156.0,0.00024658,2]
[394591440,1763745054438,-14061.0,0.00024658,2]
[394591441,1763745054454,-4000.73,0.00024658,2]
[394591442,1763745054469,-1000.0,0.00024658,2]
[394591443,1763745054485,-1070.0,0.00024658,2]
[394591444,1763745054500,-1070.0,0.00024658,2]
[394591445,1763745054516,-1070.0,0.00024658,2]
[394591446,1763745054532,-1070.0,0.00024658,2]
[394591447,1763745054547,-1070.0,0.00024658,2]
[394591448,1763745054562,-1070.0,0.00024658,2]
[394591449,1763745054578,-1070.0,0.00024658,2]
[394591450,1763745054597,-1070.0,0.00024658,2]
[394591451,1763745054613,-1070.0,0.00024658,2]
[394591452,1763745054629,-1026.0,0.00024658,2]
[394591453,1763745054644,-1026.0,0.00024658,2]
[394591454,1763745054659,-1026.0,0.00024658,2]
[394591455,1763745054674,-1026.0,0.00024658,2]
[394591456,1763745054692,-1026.0,0.00024658,2]
[394591457,1763745054709,-1026.0,0.00024658,2]
[394591458,1763745054725,-1026.0,0.00024658,2]
[394591459,1763745054739,-1026.0,0.00024658,2]
[394591460,1763745054754,-1026.0,0.00024658,2]
[394591461,1763745054768,-1026.0,0.00024658,2]
[394591462,1763745054783,-1026.0,0.00024658,2]
[394591463,1763745054798,-1475.2,0.00024658,2]
[394591464,1763745054820,-567.0,0.00024658,2]
[394591465,1763745054841,-567.0,0.00024658,2]
[394591466,1763745054861,-567.0,0.00024658,2]
[394591467,1763745054880,-567.0,0.00024658,2]
[394591468,1763745054898,-567.0,0.00024658,2]
[394591469,1763745054916,-567.0,0.00024658,2]
[394591470,1763745054933,-567.0,0.00024658,2]
[394591471,1763745054951,-567.0,0.00024658,2]
[394591472,1763745054969,-151.0,0.00024658,7]
[394591473,1763745054985,-567.0,0.00024658,2]
[394591474,1763745055000,-567.0,0.00024658,2]
[394591475,1763745055016,-151.0,0.00024658,7]
[394591476,1763745055032,-567.0,0.00024658,2]
[394591477,1763745055048,-670.0,0.00024658,2]
[394591478,1763745055064,-670.0,0.00024658,2]
[394591479,1763745055078,-670.0,0.00024658,2]
[394591480,1763745055096,-670.0,0.00024658,2]
[394591481,1763745055111,-670.0,0.00024658,2]
[394591482,1763745055126,-670.0,0.00024658,2]
[394591483,1763745055141,-670.0,0.00024658,2]
[394591484,1763745055156,-670.0,0.00024658,2]
[394591485,1763745055170,-670.0,0.00024658,2]
[394591486,1763745055185,-670.0,0.00024658,2]
[394591487,1763745055200,-670.0,0.00024658,2]
[394591488,1763745055218,-1319.0,0.00024658,2]
[394591489,1763745055234,-1319.0,0.00024658,2]
[394591490,1763745055250,-1319.0,0.00024658,2]
[394591491,1763745055265,-1319.0,0.00024658,2]
[394591492,1763745055281,-1319.0,0.00024658,2]
[394591493,1763745055297,-1319.0,0.00024658,2]
[394591494,1763745055313,-1319.0,0.00024658,2]
[394591495,1763745055328,-1319.0,0.00024658,2]
[394591496,1763745055344,-1319.0,0.00024658,2]
[394591497,1763745055354,-1319.0,0.00024658,2]
[394591498,1763745055633,-1319.0,0.00024658,2]
[394591499,1763745055647,-1062.0,0.00024658,2]
[394591500,1763745055657,-1062.0,0.00024658,2]
[394591501,1763745055667,-1062.0,0.00024658,2]
[394591502,1763745055677,-1062.0,0.00024658,2]
[394591503,1763745055686,-1062.0,0.00024658,2]
[394591504,1763745055695,-1062.0,0.00024658,2]
[394591505,1763745055705,-1062.0,0.00024658,2]
[394591506,1763745055715,-1062.0,0.00024658,2]
[394591507,1763745055726,-1062.0,0.00024658,2]
[394591508,1763745055736,-1062.0,0.00024658,2]
[394591509,1763745055746,-1062.0,0.00024658,2]
[394591510,1763745055755,-500.0,0.00024682,120]
[394591511,1763745055764,-152.0,0.00024718,8]
[394591512,1763745055773,-3000.0,0.0002474,2]
[394591513,1763745055783,-371328.431598,0.000248,3]
[394591514,1763745055792,-417.25,0.00024865,2]
[394591515,1763745055801,-417.25,0.00024865,2]
[394591516,1763745055810,-417.25,0.00024865,2]
[394591517,1763745055819,-417.25,0.00024865,2]
[394591518,1763745055828,-417.25,0.00024865,2]
[394591519,1763745055838,-417.25,0.00024865,2]
[394591520,1763745055847,-833.98,0.00024865,2]
[394591521,1763745055856,-417.25,0.00024865,2]
[394591522,1763745055865,-417.25,0.00024865,2]
[394591523,1763745055874,-583.77562454,0.00024865,2]
[394591524,1763745055884,-151.0,0.000249,7]
[394591525,1763745055894,-161.638426,0.000249,7]
[394591526,1763745055903,-161.638426,0.000249,7]
[394591527,1763745055913,-161.638426,0.000249,7]
[394591528,1763745055922,-158.472465,0.000249,7]
[394591529,1763745055931,-161.638426,0.000249,7]
[394591530,1763745055941,-151.0,0.000249,7]
[394591531,1763745055951,-151.0,0.000249,7]
[394591532,1763745055961,-151.0,0.000249,7]
[394591533,1763745055971,-151.0,0.000249,7]
[394591534,1763745055980,-151.0,0.000249,7]
[394591535,1763745055989,-199.655434,0.000249,7]
[394591536,1763745055999,-151.0,0.000249,7]
[394591537,1763745056008,-151.0,0.000249,7]
[394591538,1763745056017,-151.0,0.000249,7]
[394591539,1763745056027,-151.0,0.000249,7]
[394591540,1763745056036,-151.0,0.000249,7]
[394591541,1763745056045,-151.0,0.000249,7]
[394591542,1763745056055,-261.185169,0.000249,7]
[394591543,1763745056064,-261.185169,0.000249,7]
[394591544,1763745056074,-261.185169,0.000249,7]
[394591545,1763745056083,-261.185169,0.000249,7]
[394591546,1763745056095,-574.491917,0.000249,7]
[394591547,1763745056104,-574.491917,0.000249,7]
[394591548,1763745056113,-574.491917,0.000249,7]
[394591549,1763745056123,-574.491917,0.000249,7]
[394591550,1763745056132,-3292.791222,0.000249,7]
[394591551,1763745056142,-3292.791222,0.000249,7]
[394591552,1763745056151,-3292.791222,0.000249,7]
[394591553,1763745056160,-3292.791222,0.000249,7]
[394591554,1763745056170,-151.0,0.000249,7]
[394591555,1763745056183,-151.0,0.000249,7]
[394591556,1763745056192,-151.0,0.000249,7]
[394591557,1763745056203,-151.0,0.000249,7]
[394591558,1763745056214,-214.641876,0.000249,7]
[394591559,1763745056223,-151.0,0.000249,7]
[394591560,1763745056233,-151.0,0.000249,7]
[394591561,1763745056242,-9530.98573695,0.000249,3]
[394591562,1763745056252,-306.652235,0.000249,7]
[394591563,1763745056262,-306.652235,0.000249,7]
[394591564,1763745056271,-472.356,0.000249,7]
[394591565,1763745056280,-306.652235,0.000249,7]
[394591566,1763745056290,-472.356,0.000249,7]
[394591567,1763745056299,-306.652235,0.000249,7]
[394591568,1763745056309,-472.356,0.000249,7]
[394591569,1763745056318,-472.356,0.000249,7]
[394591570,1763745056328,-300.0,0.00024926,2]
[394591571,1763745056338,-150.0,0.00024926,2]
[394591572,1763745056347,-150.0,0.00024926,2]
[394591573,1763745056357,-150.0,0.00024926,2]
[394591574,1763745056366,-150.0,0.00024926,2]
[394591575,1763745056375,-6453.0,0.0002494,2]
[394591576,1763745056385,-300.0,0.00024999,10]
[394591577,1763745056394,-666.0,0.00024999,2]
[394591578,1763745056403,-300.0,0.00024999,10]
[394591579,1763745056414,-300.0,0.00024999,10]
[394591580,1763745056424,-300.0,0.00024999,10]
[394591581,1763745056433,-300.0,0.00024999,10]
[394591582,1763745056442,-300.0,0.00024999,10]
[394591583,1763745056451,-300.0,0.00024999,10]
[394591584,1763745056460,-300.0,0.00024999,10]
[394591585,1763745056470,-666.0,0.00024999,2]
[394591586,1763745056479,-666.0,0.00024999,2]
[394591587,1763745056489,-666.0,0.00024999,2]
[394591588,1763745056499,-666.0,0.00024999,2]
[394591589,1763745056508,-666.0,0.00024999,2]
[394591590,1763745056519,-742.98498988,0.00024999,2]
[394591591,1763745056528,-300.0,0.00024999,10]
[394591592,1763745056537,-300.0,0.00024999,10]
[394591593,1763745056547,-300.0,0.00024999,10]
[394591594,1763745056556,-666.0,0.00024999,2]
[394591595,1763745056566,-300.0,0.00024999,10]
[394591596,1763745056575,-300.0,0.00024999,10]
[394591597,1763745056600,-300.0,0.00024999,10]
[394591598,1763745056610,-300.0,0.00024999,10]
[394591599,1763745056620,-300.0,0.00024999,10]
[394591600,1763745056632,-300.0,0.00024999,10]
[394591601,1763745056641,-300.0,0.00024999,10]
[394591602,1763745056650,-300.0,0.00024999,10]
[394591603,1763745056660,-300.0,0.00024999,10]
[394591604,1763745056672,-300.0,0.00024999,10]
[394591605,1763745056683,-301.55735151,0.00024999,10]
[394591606,1763745056693,-666.0,0.00024999,2]
[394591607,1763745056703,-666.0,0.00024999,2]
[394591608,1763745056714,-666.0,0.00024999,2]
[394591609,1763745056723,-666.0,0.00024999,2]
[394591610,1763745056732,-666.0,0.00024999,2]
[394591611,1763745056742,-606.981438,0.00024999,120]
[394591612,1763745056751,-1102.75509898,0.00025,2]
[394591613,1763745056760,-205.4584787,0.00025,2]
[394591614,1763745056770,-1767.05964026,0.00025,2]
[394591615,1763745056779,-178.23410065,0.00025,2]
[394591616,1763745056789,-360.0,0.00025,2]
[394591617,1763745056799,-3013.84402405,0.00025,2]
[394591618,1763745056808,-7065.22456665,0.00025,2]
[394591619,1763745056817,-1053.65413613,0.00025,2]
[394591620,1763745056826,-165.60579779,0.00025,2]
[394591621,1763745056836,-3632.85820529,0.00025,2]
[394591622,1763745056846,-505.93893171,0.00025,7]
[394591623,1763745056855,-1276.0,0.00025,2]
[394591624,1763745056865,-150.0,0.00025,2]
[394591625,1763745056874,-150.0,0.00025,2]
[394591626,1763745056883,-150.0,0.00025,2]
[394591627,1763745056892,-150.0,0.00025,2]
[394591628,1763745056901,-150.0,0.00025,2]
[394591629,1763745056910,-150.0,0.00025,2]
[394591630,1763745056919,-150.0,0.00025,2]
[394591631,1763745056929,-150.0,0.00025,2]
[394591632,1763745056938,-150.0,0.00025,2]
[394591633,1763745056947,-203.287,0.00025,2]
[394591634,1763745056957,-692.3844266,0.00025,120]
[394591635,1763745056970,-216.32387854,0.00025,120]
[394591636,1763745056979,-150.0,0.00025,30]
[394591637,1763745056989,-1106.77839228,0.00025,7]
[394591638,1763745056999,-426.56612961,0.00025,3]
[394591639,1763745057008,-30817.28,0.00025,7]
[394591640,1763745057018,-450.0,0.00025,2]
[394591641,1763745057028,-1000.0,0.00025,7]
[394591642,1763745057037,-1519.43940876,0.00025158,2]
[394591643,1763745057047,-3000.0,0.00025288,2]
[394591644,1763745057056,-452.0,0.00025373,7]
[394591645,1763745057066,-152.0,0.00025421,9]
[394591646,1763745057075,-500.0,0.00025481,120]
[394591647,1763745057084,-389.90015136,0.000255,2]
[394591648,1763745057097,-800.0,0.00025562,2]
[394591649,1763745057107,-177.54,0.00025672,2]
[394591650,1763745057116,-177.54,0.00025672,2]
[394591651,1763745057125,-177.54,0.00025672,2]
[394591652,1763745057134,-354.99,0.00025672,2]
[394591653,1763745057143,-177.54,0.00025672,2]
[394591654,1763745057152,-177.54,0.00025672,2]
[394591655,1763745057162,-177.54,0.00025672,2]
[394591656,1763745057172,-177.54,0.00025672,2]
[394591657,1763745057181,-177.54,0.00025672,2]
[394591658,1763745057191,-417.25,0.00025687,2]
[394591659,1763745057200,-831.49,0.00025687,2]
[394591660,1763745057209,-417.25,0.00025687,2]
[394591661,1763745057218,-417.25,0.00025687,2]
[394591662,1763745057228,-417.25,0.00025687,2]
[394591663,1763745057238,-417.25,0.00025687,2]
[394591664,1763745057247,-150.65550955,0.00025796,2]
[394591665,1763745057257,-426.56612961,0.000258,3]
[394591666,1763745057266,-163.00731316,0.00025813,2]
[394591667,1763745057276,-3000.0,0.00025836,2]
[394591668,1763745057285,-20132.99073184,0.00025879,2]
[394591669,1763745057294,-151.0,0.00025879,7]
[394591670,1763745057304,-151.0,0.00025879,7]
[394591671,1763745057314,-151.0,0.00025879,7]
[394591672,1763745057323,-151.0,0.00025879,7]
[394591673,1763745057333,-151.0,0.00025879,7]
[394591674,1763745057345,-1519.43940876,0.0002593,2]
[394591675,1763745057354,-594.55427193,0.0002599,2]
[394591676,1763745057364,-4479.06051829,0.00026,2]
[394591677,1763745057373,-4138.65,0.00026,2]
[394591678,1763745057383,-214.31039951,0.00026,2]
[394591679,1763745057392,-161.314944,0.00026,2]
[394591680,1763745057401,-632.0,0.00026,2]
[394591681,1763745057411,-500.0,0.00026024,120]
[394591682,1763745057420,-771.0,0.0002607,120]
[394591683,1763745057430,-771.0,0.0002608,120]
[394591684,1763745057439,-771.0,0.0002609,120]
[394591685,1763745057448,-1009.22,0.00026116,120]
[394591686,1763745057458,-152.0,0.00026125,10]
[394591687,1763745057467,-1009.22,0.00026145,120]
[394591688,1763745057476,-1009.22,0.00026175,120]
[394591689,1763745057486,-500.0,0.00026177,120]
[394591690,1763745057495,-1009.22,0.00026207,120]
[394591691,1763745057504,-1009.22,0.00026241,120]
[394591692,1763745057514,-908.0,0.00026273,2]
[394591693,1763745057523,-1192.0,0.00026273,2]
[394591694,1763745057532,-2659.0,0.00026273,2]
[394591695,1763745057543,-561.0,0.00026273,2]
[394591696,1763745057554,-6496.0,0.00026273,2]
[394591697,1763745057563,-1009.22,0.00026277,120]
[394591698,1763745057572,-1009.22,0.00026314,120]
[394591699,1763745057582,-1009.22,0.00026355,120]
[394591700,1763745057594,-1009.22,0.00026398,120]
[394591701,1763745057603,-27217.26913915,0.000264,2]
[394591702,1763745057614,-150.0,0.00026438,2]
[394591703,1763745057626,-150.0,0.00026438,2]
[394591704,1763745057638,-292.29243307,0.00026438,2]
[394591705,1763745057647,-1009.22,0.00026444,120]
[394591706,1763745057657,-1009.22,0.00026494,120]
[394591707,1763745057667,-150.0,0.00026498,2]
[394591708,1763745057677,-1319.0,0.00026498,2]
[394591709,1763745057686,-575.0,0.00026498,2]
[394591710,1763745057696,-609.0,0.00026498,2]
[394591711,1763745057707,-3435.0,0.00026498,2]
[394591712,1763745057716,-822.0,0.00026498,2]
[394591713,1763745057726,-1601.0,0.00026498,2]
[394591714,1763745057739,-659.0,0.00026498,2]
[394591715,1763745057748,-1256.0,0.00026498,2]
[394591716,1763745057758,-426.56612961,0.000265,3]
[394591717,1763745057767,-325.95,0.00026509,2]
[394591718,1763745057776,-1009.22,0.00026548,120]
[394591719,1763745057786,-2258.0,0.00026605,2]
[394591720,1763745057795,-1009.22,0.00026607,120]
[394591721,1763745057805,-1009.22,0.00026673,120]
[394591722,1763745057814,-1000.0,0.00026676,2]
[394591723,1763745057824,-1519.43940876,0.00026703,2]
[394591724,1763745057834,-1009.22,0.00026746,120]
[394591725,1763745057845,-152.0,0.00026828,11]
[394591726,1763745057854,-1009.22,0.0002683,120]
[394591727,1763745057863,-500.0,0.00026873,120]
[394591728,1763745057873,-1009.22,0.00026926,120]
[394591729,1763745057883,-3000.0,0.00026932,2]
[394591730,1763745057893,-800.0,0.00026986,120]
[394591731,1763745057904,-800.0,0.00026986,120]
[394591732,1763745057914,-800.0,0.00026986,120]
[394591733,1763745057924,-439.08,0.00026988,7]
[394591734,1763745057934,-250.0,0.00027,2]
[394591735,1763745057943,-1023.38684737,0.00027,2]
[394591736,1763745057953,-530.0,0.00027,2]
[394591737,1763745057963,-727.16696526,0.00027,120]
[394591738,1763745057972,-271.13086253,0.00027,120]
[394591739,1763745057982,-1952.28978415,0.00027,14]
[394591740,1763745057993,-3073.11493921,0.00027,120]
[394591741,1763745058003,-500.0,0.00027,2]
[394591742,1763745058012,-2883.150152,0.00027,2]
[394591743,1763745058022,-1009.22,0.0002704,120]
[394591744,1763745058032,-446.0,0.00027064,7]
[394591745,1763745058042,-3649.29,0.00027123,2]
[394591746,1763745058052,-266.42,0.00027123,4]
[394591747,1763745058062,-1009.22,0.00027179,120]
[394591748,1763745058071,-1000.0,0.00027236,2]
[394591749,1763745058081,-150.0,0.00027331,2]
[394591750,1763745058092,-500.0,0.00027366,120]
[394591751,1763745058101,-150.0,0.00027369,2]
[394591752,1763745058111,-4069.27486578,0.0002739,2]
[394591753,1763745058121,-8039.26263701,0.0002739,2]
[394591754,1763745058130,-1428.6248327,0.0002739,7]
[394591755,1763745058140,-170.79503959,0.00027397,120]
[394591756,1763745058150,-500.0,0.00027397,120]
[394591757,1763745058160,-750.85,0.00027397,30]
[394591758,1763745058169,-513.9,0.00027397,2]
[394591759,1763745058180,-300.0,0.00027397,2]
[394591760,1763745058190,-32800.98,0.00027397,2]
[394591761,1763745058200,-500.0,0.00027397,5]
[394591762,1763745058209,-151.000008,0.00027397,7]
[394591763,1763745058219,-1475.2,0.00027397,2]
[394591764,1763745058230,-70709.56211189,0.000274,30]
[394591765,1763745058241,-1121.7,0.000274,7]
[394591766,1763745058251,-6751.87,0.000274,2]
[394591767,1763745058260,-1055.48207517,0.000274,2]
[394591768,1763745058270,-9035.0,0.00027419,2]
[394591769,1763745058278,-1519.43940876,0.00027475,2]
[394591770,1763745058287,-3000.0,0.0002748,7]
[394591771,1763745058299,-199.04392597,0.000275,2]
[394591772,1763745058308,-543.7427421,0.000275,2]
[394591773,1763745058317,-152.0,0.00027531,12]
[394591774,1763745058326,-500.0,0.00027534,120]
[394591775,1763745058336,-500.0,0.0002757,120]
[394591776,1763745058345,-500.0,0.00027671,120]
[394591777,1763745058354,-4551.95,0.00027671,2]
[394591778,1763745058363,-30817.28,0.000277,7]
[394591779,1763745058372,-800.0,0.00027754,7]
[394591780,1763745058380,-500.0,0.00027808,120]
[394591781,1763745058389,-150.65550955,0.00027848,2]
[394591782,1763745058398,-500.0,0.00027945,120]
[394591783,1763745058407,-215.84089335,0.00028,2]
[394591784,1763745058416,-160.0,0.00028,2]
[394591785,1763745058425,-633.64690743,0.00028,120]
[394591786,1763745058434,-1000.0,0.00028,28]
[394591787,1763745058443,-426.56612961,0.00028,30]
[394591788,1763745058452,-200.0,0.00028,120]
[394591789,1763745058461,-30817.27,0.00028,7]
[394591790,1763745058470,-1121.7,0.00028,7]
[394591791,1763745058479,-6751.87,0.00028,2]
[394591792,1763745058488,-633.0,0.00028,2]
[394591793,1763745058500,-3000.0,0.00028028,7]
[394591794,1763745058509,-500.0,0.00028082,120]
[394591795,1763745058518,-2000.0,0.000281,2]
[394591796,1763745058527,-177.45,0.00028153,2]
[394591797,1763745058536,-358.18,0.00028153,2]
[394591798,1763745058545,-301.22,0.00028182,2]
[394591799,1763745058554,-377.01,0.00028182,2]
[394591800,1763745058563,-300.0,0.00028182,2]
[394591801,1763745058737,-329.07,0.00028182,2]
[394591802,1763745058753,-302.56,0.00028182,2]
[394591803,1763745058763,-30817.28,0.000282,7]
[394591804,1763745058773,-502.04195507,0.00028219,120]
[394591805,1763745058783,-152.0,0.00028234,13]
[394591806,1763745058793,-1519.43940876,0.00028247,2]
[394591807,1763745058802,-500.0,0.00028266,120]
[394591808,1763745058812,-5000.0,0.00028463,7]
[394591809,1763745058821,-500.0,0.00028707,120]
[394591810,1763745058831,-172.0160815,0.00028711,30]
[394591811,1763745058841,-446.0,0.00028756,14]
[394591812,1763745058850,-426.56612961,0.000288,30]
[394591813,1763745058860,-211.0,0.0002882,30]
[394591814,1763745058870,-203.09256922,0.00028875,120]
[394591815,1763745058880,-1121.7,0.000289,7]
[394591816,1763745058889,-6751.87,0.000289,2]
[394591817,1763745058900,-152.0,0.00028937,14]
[394591818,1763745058911,-500.0,0.00028962,120]
[394591819,1763745058922,-354.89,0.00028975,2]
[394591820,1763745058931,-177.5,0.00028975,2]
[394591821,1763745058940,-417.25,0.00028978,2]
[394591822,1763745058949,-999.999999,0.0002899,30]
[394591823,1763745058959,-446.0,0.00028997,14]
[394591824,1763745058967,-298.2210372,0.00029,120]
[394591825,1763745058977,-575.0,0.00029,2]
[394591826,1763745058986,-550.0,0.00029,2]
[394591827,1763745058995,-150.0,0.00029004,2]
[394591828,1763745059005,-150.0,0.00029004,2]
[394591829,1763745059014,-150.0,0.00029004,2]
[394591830,1763745059024,-1519.43940885,0.0002902,2]
[394591831,1763745059033,-550.79,0.00029036,2]
[394591832,1763745059043,-550.79,0.00029036,2]
[394591833,1763745059053,-550.79,0.00029036,2]
[394591834,1763745059063,-610.43,0.00029036,2]
[394591835,1763745059073,-550.68,0.00029036,2]
[394591836,1763745059083,-1101.19,0.00029036,2]
[394591837,1763745059093,-264.84731674,0.00029088,30]
[394591838,1763745059103,-2242.49,0.000291,14]